bitfinex/quotes_BTCUSD_20250904
["timestamp","ask_amount","ask_price","bid_price","bid_amount"]
[1756949485175,0.00202,111970.0,111960.0,0.39992522]
[1756949485842,0.00424647,111970.0,111960.0,0.39992522]
[1756949486543,0.00202,111970.0,111960.0,0.40304522]
[1756949486754,0.00424647,111970.0,111960.0,0.40304522]
[1756949486970,0.00202,111970.0,111960.0,0.39992522]
[1756949487185,0.00202,111970.0,111960.0,0.40304522]
[1756949487409,0.4194394,111980.0,111960.0,0.40304522]
[1756949487644,0.03000511,111990.0,111980.0,0.17860332]
[1756949487878,0.0074035,111990.0,111980.0,0.32820332]
[1756949488112,0.42150643,111990.0,111980.0,0.32820332]
[1756949488327,0.41927996,111990.0,111980.0,0.32820332]
[1756949488982,0.42227996,111990.0,111980.0,0.32820332]
[1756949489834,0.41927996,111990.0,111980.0,0.32820332]
[1756949491074,0.42027996,111990.0,111980.0,0.32820332]
[1756949492078,0.00617703,111990.0,111980.0,0.32820332]
[1756949492296,0.0084035,111990.0,111980.0,0.32820332]
[1756949492798,0.0052935,111990.0,111980.0,0.33341332]
[1756949493657,0.31570896,111990.0,111980.0,0.33341332]
[1756949493860,0.31348249,111990.0,111980.0,0.33341332]
[1756949495016,0.31348249,111990.0,111980.0,0.33029332]
[1756949495669,0.31348249,111990.0,111980.0,0.32820332]
[1756949496093,0.00306703,111990.0,111980.0,0.32820332]
[1756949496357,0.31570896,111990.0,111980.0,0.32820332]
[1756949496567,0.31659249,111990.0,111980.0,0.32820332]
[1756949498688,0.31348249,111990.0,111980.0,0.32820332]
[1756949499109,0.31348249,111990.0,111980.0,0.33034332]
[1756949499816,0.00306703,111990.0,111980.0,0.33034332]
[1756949500074,0.00104703,111990.0,111980.0,0.33350332]
[1756949500329,0.0032735,111990.0,111980.0,0.33350332]
[1756949500727,0.0032735,111990.0,111980.0,0.18390332]
[1756949501020,0.0054235,111990.0,111980.0,0.18390332]
[1756949501259,0.31583896,111990.0,111980.0,0.18074332]
[1756949501446,0.31662249,111990.0,111980.0,0.32816332]
[1756949503156,0.31361249,111990.0,111980.0,0.33030332]
[1756949503573,0.31361249,111990.0,111980.0,0.33346332]
[1756949503786,0.31146249,111990.0,111980.0,0.33346332]
[1756949505649,0.00104703,111990.0,111980.0,0.33346332]
[1756949506423,0.00104703,111990.0,111980.0,0.34235663]
[1756949510605,0.00104703,111990.0,111980.0,0.74468808]
[1756949511500,0.00104703,111990.0,111980.0,0.59512808]
[1756949511710,0.00104703,111990.0,111980.0,0.74468808]
[1756949511929,0.00104703,111990.0,111980.0,0.59512808]
[1756949512146,0.00104703,111990.0,111980.0,0.74468808]
[1756949515777,0.00104703,111990.0,111980.0,0.43427262]
[1756949515983,0.00104703,111990.0,111980.0,0.74468808]
[1756949517042,0.00319703,111990.0,111980.0,0.28471262]
[1756949517233,0.00319703,111990.0,111980.0,0.74468808]
[1756949517766,0.00319703,111990.0,111980.0,0.43427262]
[1756949517983,0.00319703,111990.0,111980.0,0.28471262]
[1756949518213,0.00104703,111990.0,111980.0,0.43427262]
[1756949518439,0.00104703,111990.0,111980.0,0.73579477]
[1756949518801,0.00104703,111990.0,111980.0,0.74479242]
[1756949519010,0.00104703,111990.0,111980.0,0.59523242]
[1756949519202,0.00104703,111990.0,111980.0,0.74475242]
[1756949519851,0.00104703,111990.0,111980.0,1.05516788]
[1756949520257,0.00104703,111990.0,111980.0,0.43461696]
[1756949520465,0.00104703,111990.0,111980.0,0.74503242]
[1756949521298,0.00104703,111990.0,111980.0,1.05544788]
[1756949522946,0.00104703,111990.0,111980.0,1.04645023]
[1756949524038,0.00104703,111990.0,111980.0,1.05002856]
[1756949524500,0.00104703,111990.0,111980.0,0.27939764]
[1756949524717,0.00104703,111990.0,111980.0,1.05030856]
[1756949525475,0.00104703,111990.0,111980.0,1.05042856]
[1756949525673,4.703e-05,111990.0,111980.0,1.05042856]
[1756949525869,4.703e-05,111990.0,111980.0,1.05142856]
[1756949526043,4.703e-05,111990.0,111980.0,1.05342856]
[1756949526255,4.703e-05,111990.0,111980.0,1.05242856]
[1756949526685,4.703e-05,111990.0,111980.0,0.28139764]
[1756949526868,4.703e-05,111990.0,111980.0,1.05442856]
[1756949527267,4.703e-05,111990.0,111980.0,0.90422856]
[1756949527471,4.703e-05,111990.0,111980.0,1.05442856]
[1756949528150,4.703e-05,111990.0,111980.0,1.06342865]
[1756949528311,4.703e-05,111990.0,111980.0,1.10411324]
[1756949529170,4.703e-05,111990.0,111980.0,0.48328232]
[1756949529444,4.703e-05,111990.0,111980.0,1.10411324]
[1756949530222,4.703e-05,111990.0,111980.0,1.44411324]
[1756949530432,4.703e-05,111990.0,111980.0,1.13369778]
[1756949530710,4.703e-05,111990.0,111980.0,1.44411324]
[1756949531579,4.703e-05,111990.0,111980.0,1.51505206]
[1756949532255,4.703e-05,111990.0,111980.0,1.93750123]
[1756949532480,4.703e-05,111990.0,111980.0,1.98750123]
[1756949532706,4.703e-05,111990.0,111980.0,2.13750123]
[1756949532936,4.703e-05,111990.0,111980.0,1.87526752]
[1756949533159,4.703e-05,111990.0,111980.0,2.02674752]
[1756949535176,4.703e-05,111990.0,111980.0,2.53899336]
[1756949536733,4.703e-05,111990.0,111980.0,1.49550114]
[1756949536929,4.703e-05,111990.0,111980.0,2.42674752]
[1756949538498,4.703e-05,111990.0,111980.0,1.49550114]
[1756949538716,4.703e-05,111990.0,111980.0,2.42674752]
[1756949538929,0.07374631,112030.0,112020.0,0.79937046]
[1756949539149,0.07379334,112030.0,112020.0,1.11212645]
[1756949539371,0.07379334,112030.0,112020.0,1.11722645]
[1756949539942,0.00024703,112030.0,112020.0,1.11722645]
[1756949542408,0.00024703,112030.0,112020.0,1.45722645]
[1756949543789,0.00224703,112030.0,112020.0,1.51907262]
[1756949543992,0.0002,112040.0,112030.0,0.5185236]
[1756949544255,0.0002,112040.0,112030.0,0.76565959]
[1756949544421,0.0002,112040.0,112030.0,1.07607505]
[1756949544623,0.0002,112040.0,112030.0,1.08177162]
[1756949544995,0.0002,112040.0,112030.0,1.08173162]
[1756949545706,0.0002,112040.0,112030.0,1.4130859]
[1756949545952,0.0002,112040.0,112030.0,1.4630859]
[1756949546193,1e-08,112040.0,112030.0,1.4630859]
[1756949546408,0.0002,112050.0,112040.0,0.51850767]
[1756949546632,0.00067021,112050.0,112040.0,1.38639458]
[1756949546822,0.00067021,112050.0,112040.0,1.38851458]
[1756949547326,0.0002,112060.0,112050.0,0.51849174]
[1756949547538,1e-08,112060.0,112050.0,1.52587747]
[1756949547756,1e-08,112060.0,112050.0,1.52799747]
[1756949548702,1e-08,112060.0,112050.0,1.52899747]
[1756949549214,1e-08,112070.0,112060.0,1.21024555]
[1756949549494,0.00014099,112070.0,112060.0,1.982037]
[1756949549737,0.00014099,112070.0,112060.0,1.67162154]
[1756949549947,0.00014099,112070.0,112060.0,1.984157]
[1756949550168,0.00014099,112070.0,112060.0,1.67374154]
[1756949550387,0.00329,112110.0,112080.0,0.5184303]
[1756949550608,0.00343095,112110.0,112100.0,0.79924305]
[1756949550811,0.00343095,112110.0,112100.0,0.73270358]
[1756949551023,0.00542095,112110.0,112100.0,0.73270358]
[1756949551261,0.00542095,112110.0,112100.0,0.29713804]
[1756949551465,0.02926095,112110.0,112100.0,0.44909804]
[1756949551678,0.02926095,112110.0,112100.0,0.29713804]
[1756949551888,0.02926095,112110.0,112100.0,0.44905804]
[1756949552972,0.33967641,112110.0,112100.0,0.44905804]
[1756949553455,0.02926095,112110.0,112100.0,0.44905804]
[1756949555668,0.00542095,112110.0,112100.0,0.44905804]
[1756949555885,0.00034095,112110.0,112100.0,1.20708739]
[1756949556312,0.00034095,112110.0,112100.0,0.79415804]
[1756949556519,0.00034095,112110.0,112100.0,1.20708739]
[1756949557397,0.00034095,112110.0,112100.0,1.20908739]
[1756949557618,0.00034095,112110.0,112100.0,1.28202621]
[1756949557840,1e-08,112110.0,112100.0,1.28202621]
[1756949558471,1e-08,112110.0,112100.0,1.68202621]
[1756949559402,0.0002,112150.0,112140.0,0.17834849]
[1756949559627,0.00034093,112150.0,112140.0,1.24622318]
[1756949559845,0.00034093,112150.0,112140.0,1.24890383]
[1756949560067,0.00034093,112150.0,112140.0,1.27570281]
[1756949560739,0.00233093,112150.0,112140.0,0.85984346]
[1756949561002,0.00233093,112150.0,112140.0,1.27277281]
[1756949561438,0.00544093,112150.0,112140.0,0.86010346]
[1756949562245,0.00034093,112150.0,112140.0,1.27794281]
[1756949562464,0.00034093,112150.0,112140.0,1.27994281]
[1756949563501,0.00034093,112150.0,112140.0,0.86701346]
[1756949563715,0.00034093,112150.0,112140.0,0.87615716]
[1756949563929,0.00233093,112150.0,112140.0,0.87124716]
[1756949564143,0.00034093,112150.0,112140.0,1.45419885]
[1756949564360,0.00034093,112150.0,112140.0,1.50419885]
[1756949565019,0.00034093,112150.0,112140.0,1.90419885]
[1756949569223,0.00034093,112150.0,112140.0,1.75175885]
[1756949569443,0.00034093,112150.0,112140.0,1.90471885]
[1756949569886,0.00233093,112150.0,112140.0,1.85467885]
[1756949570101,0.00233093,112150.0,112140.0,1.27172716]
[1756949570325,0.00233093,112150.0,112140.0,1.83081003]
[1756949570543,0.00034093,112150.0,112140.0,1.85467885]
[1756949570755,0.00034093,112150.0,112140.0,1.90467885]
[1756949571837,0.00034093,112150.0,112140.0,1.34757598]
[1756949572023,0.00034093,112150.0,112140.0,1.90467885]
[1756949573283,0.00233093,112150.0,112140.0,1.75175885]
[1756949573533,0.00233093,112150.0,112140.0,1.94268894]
[1756949573768,0.00233093,112150.0,112140.0,1.89268894]
[1756949573988,0.00233093,112150.0,112140.0,1.87175012]
[1756949574450,0.00233093,112150.0,112140.0,1.15978725]
[1756949574666,0.00544093,112150.0,112140.0,0.91262725]
[1756949574876,0.00034093,112150.0,112140.0,0.91460725]
[1756949575095,0.00034093,112150.0,112140.0,1.31753725]
[1756949575324,0.00034093,112150.0,112140.0,1.87464012]
[1756949575578,0.00233093,112150.0,112140.0,1.87171012]
[1756949575794,0.00544093,112150.0,112140.0,0.75978725]
[1756949576019,0.00544093,112150.0,112140.0,0.91254725]
[1756949576314,0.00544093,112150.0,112140.0,0.41978725]
[1756949576482,0.0325374,112150.0,112140.0,0.56340355]
[1756949578502,0.00544093,112150.0,112140.0,0.56340355]
[1756949578947,0.0076674,112150.0,112140.0,0.56340355]
[1756949582117,0.00544093,112150.0,112140.0,0.56340355]
[1756949582957,0.0076674,112150.0,112140.0,0.56340355]
[1756949583523,0.00544093,112150.0,112140.0,0.56340355]
[1756949583731,0.00233093,112150.0,112140.0,0.56340355]
[1756949584888,0.00034093,112150.0,112140.0,0.98097722]
[1756949585168,0.00034093,112150.0,112140.0,0.56831355]
[1756949585416,0.00034093,112150.0,112140.0,0.98097722]
[1756949587119,0.00233093,112150.0,112140.0,0.56831355]
[1756949587797,0.00544093,112150.0,112140.0,0.56340355]
[1756949588223,0.00233093,112150.0,112140.0,0.56538355]
[1756949588651,0.00233093,112150.0,112140.0,0.56831355]
[1756949588848,0.00233093,112150.0,112140.0,0.56538355]
[1756949589258,0.4181246,112150.0,112140.0,0.41064355]
[1756949589707,0.00546093,112150.0,112140.0,0.56348355]
[1756949589909,0.0076874,112150.0,112140.0,0.56348355]
[1756949590368,0.18601999,112150.0,112140.0,0.56348355]
[1756949590597,0.00546093,112150.0,112140.0,0.56348355]
[1756949590805,0.0076874,112150.0,112140.0,0.56348355]
[1756949591215,0.18601999,112150.0,112140.0,0.56348355]
[1756949591420,0.18379352,112150.0,112140.0,0.56348355]
[1756949592658,0.59645719,112150.0,112140.0,0.2254]
[1756949592883,0.61919719,112150.0,112140.0,0.0726]
[1756949593100,0.61919719,112150.0,112140.0,0.2254]
[1756949593335,0.61919719,112150.0,112140.0,0.2234]
[1756949593545,0.20653352,112150.0,112140.0,0.2234]
[1756949593749,0.61919719,112150.0,112140.0,0.2214]
[1756949594209,0.62019719,112150.0,112140.0,0.2214]
[1756949595229,0.96019719,112150.0,112140.0,0.22132]
[1756949595430,1.05211318,112150.0,112140.0,0.15272]
[1756949599632,0.52166352,112150.0,112140.0,0.15272]
[1756949600110,0.93432719,112150.0,112140.0,0.33106849]
[1756949600457,0.93745719,112150.0,112140.0,0.33106849]
[1756949600707,0.93745719,112150.0,112140.0,0.15272]
[1756949601185,0.93745719,112150.0,112140.0,0.33106849]
[1756949601395,0.93745719,112150.0,112140.0,0.15272]
[1756949604772,0.17835994,112140.0,112120.0,0.36276685]
[1756949605036,0.59298806,112130.0,112120.0,0.32704137]
[1756949605298,0.59611806,112130.0,112120.0,0.48020137]
[1756949605509,0.59611806,112130.0,112120.0,0.32704137]
[1756949606016,0.59611806,112130.0,112120.0,0.48020137]
[1756949606327,0.59611806,112130.0,112120.0,0.30182107]
[1756949606534,0.59611806,112130.0,112120.0,0.48120137]
[1756949606972,0.59611806,112130.0,112120.0,0.48220137]
[1756949607603,0.59611806,112130.0,112120.0,0.4011003]
[1756949608465,0.59298806,112130.0,112120.0,0.4011003]
[1756949608679,0.59398806,112130.0,112120.0,0.4011003]
[1756949609216,0.59398806,112130.0,112120.0,0.4032003]
[1756949609418,0.59398806,112130.0,112120.0,0.51534179]
[1756949609646,0.59398806,112130.0,112120.0,0.51434179]
[1756949610916,0.59398806,112130.0,112120.0,0.33596149]
[1756949611262,0.59398806,112130.0,112120.0,0.51434179]
[1756949611507,0.59711806,112130.0,112120.0,0.33386149]
[1756949611727,0.59711806,112130.0,112120.0,0.51224179]
[1756949612488,0.59711806,112130.0,112120.0,0.33386149]
[1756949613563,0.59398806,112130.0,112120.0,0.51224179]
[1756949613723,0.59398806,112130.0,112120.0,0.33386149]
[1756949614122,0.59711806,112130.0,112120.0,0.18070149]
[1756949614321,1.13921207,112130.0,112120.0,0.11214149]
[1756949614605,1.22547287,112130.0,112120.0,0.11214149]
[1756949615222,1.07271287,112130.0,112120.0,0.11214149]
[1756949615424,0.1783803,112120.0,112110.0,0.26494149]
[1756949615552,0.80523953,112120.0,112110.0,0.26494149]
[1756949615757,0.80301306,112120.0,112110.0,0.26494149]
[1756949615973,0.79988306,112120.0,112110.0,0.27010149]
[1756949616404,0.79988306,112120.0,112110.0,0.26704149]
[1756949616616,0.79988306,112120.0,112110.0,0.1559]
[1756949617469,0.79988306,112120.0,112110.0,0.1538]
[1756949619619,0.61028038,112130.0,112110.0,0.33736621]
[1756949619860,0.00222647,112120.0,112110.0,0.33736621]
[1756949620075,0.31199785,112120.0,112110.0,0.33736621]
[1756949620309,0.30977138,112120.0,112110.0,0.33736621]
[1756949620516,0.30977138,112120.0,112110.0,0.33636621]
[1756949620716,0.48815168,112120.0,112110.0,0.33636621]
[1756949620927,0.30977138,112120.0,112110.0,0.33636621]
[1756949621130,0.48815168,112120.0,112110.0,0.33636621]
[1756949622774,0.48815168,112120.0,112110.0,0.33736621]
[1756949623986,0.49023168,112120.0,112110.0,0.33736621]
[1756949624285,0.80000306,112120.0,112110.0,0.001]
[1756949624483,0.80300306,112120.0,112110.0,0.15368]
[1756949625155,0.1834603,112120.0,112110.0,0.15368]
[1756949625357,0.80000306,112120.0,112110.0,0.33207621]
[1756949625782,0.80100306,112120.0,112110.0,0.15368]
[1756949626099,0.80400306,112120.0,112110.0,0.15368]
[1756949626235,0.80400306,112120.0,112110.0,0.15268]
[1756949627206,0.80400306,112120.0,112100.0,0.24999157]
[1756949627511,0.17839621,112110.0,112100.0,0.24999157]
[1756949627717,0.17839621,112110.0,112100.0,0.40271157]
[1756949627873,0.17839621,112110.0,112100.0,0.40486157]
[1756949628078,0.49215168,112120.0,112100.0,0.40486157]
[1756949628443,0.49115168,112120.0,112100.0,0.40486157]
[1756949628662,0.30977138,112110.0,112100.0,0.40486157]
[1756949629847,0.48816759,112110.0,112100.0,0.40486157]
[1756949630636,0.48816759,112110.0,112100.0,0.40586157]
[1756949630842,0.49024759,112110.0,112100.0,0.40586157]
[1756949631211,0.49115168,112120.0,112100.0,0.40586157]
[1756949631538,0.31199785,112110.0,112100.0,0.40586157]
[1756949631735,0.30977138,112110.0,112100.0,0.40586157]
[1756949632983,0.48816759,112110.0,112100.0,0.40586157]
[1756949633411,0.49024759,112110.0,112100.0,0.40466157]
[1756949634587,0.49024759,112110.0,112100.0,0.40566157]
[1756949635445,0.49324759,112110.0,112100.0,0.22196]
[1756949636260,0.49324759,112110.0,112100.0,0.22096]
[1756949636443,0.49324759,112110.0,112100.0,0.39937213]
[1756949636647,0.49424759,112110.0,112100.0,0.39937213]
[1756949639018,0.49424759,112110.0,112100.0,0.22096]
[1756949639899,0.49424759,112110.0,112100.0,0.2208]
[1756949642012,0.49124759,112110.0,112100.0,0.2208]
[1756949642251,0.49124759,112110.0,112100.0,0.40136213]
[1756949642453,0.31077138,112110.0,112100.0,0.40438213]
[1756949643818,0.48916759,112110.0,112100.0,0.40438213]
[1756949644019,0.001,112110.0,112100.0,0.40438213]
[1756949644165,0.001,112110.0,112100.0,0.71415351]
[1756949645568,0.001,112110.0,112100.0,0.8060695]
[1756949646107,0.001,112110.0,112100.0,0.49629812]
[1756949646362,0.001,112110.0,112100.0,0.8060695]
[1756949646563,0.50004874,112140.0,112130.0,0.17836439]
[1756949646793,1.24381611,112140.0,112130.0,0.33044439]
[1756949646973,1.23488724,112140.0,112130.0,0.33044439]
[1756949647774,1.23488724,112140.0,112130.0,0.15208]
[1756949648070,1.23488724,112140.0,112130.0,0.33044439]
[1756949648814,1.23688724,112140.0,112130.0,0.33044439]
[1756949649167,1.23688724,112140.0,112130.0,0.15208]
[1756949650418,1.23688724,112140.0,112130.0,0.33044439]
[1756949651796,1.23688724,112140.0,112130.0,0.15208]
[1756949652196,1.23688724,112140.0,112130.0,0.33044439]
[1756949653272,0.31385138,112140.0,112130.0,0.33242439]
[1756949653480,0.31385138,112140.0,112130.0,0.33553439]
[1756949653862,0.00408,112140.0,112130.0,0.33553439]
[1756949654077,0.31607785,112140.0,112130.0,0.33553439]
[1756949654280,0.002,112140.0,112130.0,0.33553439]
[1756949654634,0.31177138,112140.0,112130.0,0.40409439]
[1756949655020,0.002,112140.0,112130.0,0.40409439]
[1756949655223,0.31177138,112140.0,112130.0,0.40409439]
[1756949655862,0.002,112140.0,112130.0,0.40409439]
[1756949656265,0.002,112140.0,112130.0,0.80578176]
[1756949656735,0.002,112140.0,112130.0,0.49601038]
[1756949657187,0.002,112140.0,112130.0,0.5049441]
[1756949657779,0.30997138,112150.0,112140.0,0.17834849]
[1756949657974,0.31011231,112150.0,112140.0,0.18343849]
[1756949658422,0.00034093,112150.0,112140.0,0.18343849]
[1756949659006,0.0025674,112150.0,112140.0,0.18343849]
[1756949659569,0.0035674,112150.0,112140.0,0.18343849]
[1756949660799,0.0025674,112150.0,112140.0,0.18343849]
[1756949661233,0.0025674,112150.0,112140.0,0.89489724]
[1756949661234,0.00034093,112150.0,112140.0,0.89489724]
[1756949661577,0.00034093,112150.0,112140.0,0.30315655]
[1756949661788,0.00034093,112150.0,112140.0,0.61292793]
[1756949662270,0.00034093,112150.0,112140.0,0.30315655]
[1756949662485,0.00034093,112150.0,112140.0,0.61292793]
[1756949662711,0.00034093,112150.0,112140.0,0.65272281]
[1756949663475,0.00034093,112150.0,112140.0,0.34295143]
[1756949663695,0.00034093,112150.0,112140.0,0.65272281]
[1756949664770,0.00034093,112150.0,112140.0,0.65172281]
[1756949664968,0.00034093,112150.0,112140.0,1.30249419]
[1756949665176,0.00034093,112150.0,112140.0,1.30449419]
[1756949665554,0.00034093,112150.0,112140.0,1.51877419]
[1756949666192,0.00034093,112150.0,112140.0,1.93971301]
[1756949666363,0.00034093,112150.0,112140.0,2.09155301]
[1756949667428,0.00034093,112150.0,112140.0,1.93971301]
[1756949667627,0.00034093,112150.0,112140.0,2.05175813]
[1756949668072,0.00034093,112150.0,112140.0,2.05171813]
[1756949668792,0.00034093,112150.0,112140.0,1.89991813]
[1756949669012,0.00034093,112150.0,112140.0,2.05167813]
[1756949669221,0.00034093,112150.0,112140.0,2.36172951]
[1756949669429,0.00034093,112150.0,112140.0,2.05195813]
[1756949671565,0.00034093,112150.0,112140.0,1.89991813]
[1756949671741,0.00034093,112150.0,112140.0,2.05191813]
[1756949672708,0.00034093,112150.0,112140.0,1.87897931]
[1756949672910,0.00034093,112150.0,112140.0,2.07066152]
[1756949673658,0.00034093,112150.0,112140.0,1.67062152]
[1756949676976,0.00244093,112150.0,112140.0,0.89907876]
[1756949677107,0.00244093,112150.0,112140.0,1.17551152]
[1756949677311,0.00034093,112150.0,112140.0,1.33050152]
[1756949677523,0.00034093,112150.0,112140.0,1.12352498]
[1756949679871,0.59636974,112150.0,112140.0,0.1548]
[1756949680122,0.18380352,112150.0,112140.0,0.1548]
[1756949680328,0.20754352,112150.0,112140.0,0.1548]
[1756949680928,0.20754352,112150.0,112140.0,0.1528]
[1756949681304,0.62010974,112150.0,112140.0,0.1528]
[1756949681511,0.17834849,112140.0,112130.0,0.06856]
[1756949681750,0.18356496,112140.0,112130.0,0.22036]
[1756949681952,0.18347849,112140.0,112130.0,0.22036]
[1756949683415,0.18547849,112140.0,112130.0,0.22036]
[1756949684268,0.18547849,112140.0,112130.0,0.39872439]
[1756949685009,0.59804471,112140.0,112130.0,0.06856]
[1756949685208,0.59804471,112140.0,112130.0,0.22032]
[1756949686173,0.18547849,112140.0,112130.0,0.22032]
[1756949686695,0.18547849,112140.0,112130.0,0.39868439]
[1756949687655,0.18547849,112140.0,112130.0,0.22032]
[1756949688238,0.59804471,112140.0,112130.0,0.22032]
[1756949688452,0.18547849,112140.0,112130.0,0.22032]
[1756949688632,0.62178471,112140.0,112130.0,0.06856]
[1756949688847,0.62178471,112140.0,112130.0,0.22036]
[1756949691583,0.62178471,112140.0,112130.0,0.06856]
[1756949691791,0.62178471,112140.0,112130.0,0.22028]
[1756949694237,0.17837422,112130.0,112110.0,0.19047366]
[1756949694463,0.17839621,112110.0,112100.0,0.09855134]
[1756949694674,0.18053621,112110.0,112100.0,0.39865213]
[1756949695080,0.18053621,112110.0,112100.0,0.40075213]
[1756949695901,0.18053621,112110.0,112100.0,0.40175213]
[1756949696346,0.59609243,112110.0,112100.0,0.22124]
[1756949698051,0.59609243,112110.0,112100.0,0.22324]
[1756949698624,0.59609243,112110.0,112100.0,0.22124]
[1756949699277,0.68800842,112110.0,112100.0,0.22132]
[1756949699690,0.68501842,112110.0,112100.0,0.22132]
[1756949699902,0.2724522,112110.0,112100.0,0.22342]
[1756949700202,0.00214,112110.0,112100.0,0.40501213]
[1756949700405,0.18062268,112110.0,112100.0,0.40501213]
[1756949700536,0.00222647,112110.0,112100.0,0.40501213]
[1756949700938,0.18062268,112110.0,112100.0,0.40501213]
[1756949701158,0.00222647,112110.0,112100.0,0.40501213]
[1756949701353,0.18062268,112110.0,112100.0,0.40501213]
[1756949701824,0.18276268,112110.0,112100.0,0.40501213]
[1756949701985,0.59094652,112120.0,112100.0,0.40501213]
[1756949702203,0.93094652,112120.0,112100.0,0.40501213]
[1756949703015,0.17839621,112110.0,112100.0,0.40501213]
[1756949703614,0.5183803,112120.0,112100.0,0.40501213]
[1756949703823,0.5183803,112120.0,112110.0,0.18157621]
[1756949704182,0.5215203,112120.0,112110.0,0.18367621]
[1756949704632,0.001,112120.0,112110.0,0.18367621]
[1756949704846,0.00322647,112120.0,112110.0,0.18367621]
[1756949705285,0.00222647,112120.0,112110.0,0.18367621]
[1756949705495,0.00222647,112130.0,112120.0,0.1783803]
[1756949705710,0.00222647,112130.0,112120.0,0.3356203]
[1756949707407,0.21426216,112150.0,112130.0,0.17835511]
[1756949707595,0.00222647,112140.0,112130.0,0.17835511]
[1756949707808,0.00222647,112140.0,112130.0,0.33357511]
[1756949708029,0.00222647,112140.0,112130.0,0.33567511]
[1756949709130,0.00622647,112140.0,112130.0,0.33567511]
[1756949709588,0.00222647,112140.0,112130.0,0.33567511]
[1756949710004,0.00422647,112140.0,112130.0,0.40423511]
[1756949714111,0.002,112140.0,112130.0,0.40423511]
[1756949714316,0.002,112140.0,112130.0,0.81680133]
[1756949714743,0.002,112140.0,112130.0,0.40423511]
[1756949715238,0.002,112140.0,112130.0,0.81680133]
[1756949715715,0.002,112140.0,112130.0,0.75667732]
[1756949715938,0.002,112140.0,112130.0,0.90855732]
[1756949717285,0.002,112140.0,112130.0,0.91213128]
[1756949722472,0.002,112140.0,112130.0,0.76025128]
[1756949722679,0.002,112140.0,112130.0,0.49940506]
[1756949722883,0.002,112140.0,112130.0,0.91197128]
[1756949723139,0.002,112140.0,112130.0,0.34768506]
[1756949723339,0.002,112140.0,112130.0,0.49940506]
[1756949723542,0.00414,112140.0,112130.0,0.49940506]
[1756949723877,0.00214,112140.0,112130.0,0.49940506]
[1756949724092,0.00327093,112150.0,112140.0,0.17834849]
[1756949724524,0.0076374,112150.0,112140.0,0.17834849]
[1756949724996,0.59853621,112150.0,112140.0,0.33010849]
[1756949725201,0.18374352,112150.0,112140.0,0.17834849]
[1756949725411,0.18374352,112150.0,112140.0,0.33010849]
[1756949726045,0.18374352,112150.0,112140.0,0.17834849]
[1756949726295,0.18574352,112150.0,112140.0,0.33010849]
[1756949727212,0.18574352,112150.0,112130.0,0.24691511]
[1756949727416,0.59830974,112150.0,112130.0,0.24691511]
[1756949727848,0.59830974,112150.0,112140.0,0.15168]
[1756949729465,0.18374352,112150.0,112140.0,0.15168]
[1756949729693,0.59630974,112150.0,112140.0,0.15168]
[1756949729888,0.59830974,112150.0,112140.0,0.15168]
[1756949730257,0.59630974,112150.0,112140.0,0.15168]
[1756949730628,0.17834849,112140.0,112130.0,0.06856]
[1756949730828,0.59314118,112140.0,112130.0,0.39856439]
[1756949731074,0.18341849,112140.0,112130.0,0.39856439]
[1756949733641,0.18541849,112140.0,112130.0,0.39856439]
[1756949735854,0.18541849,112140.0,112130.0,0.2202]
[1756949736486,0.18541849,112140.0,112130.0,0.39856439]
[1756949737600,0.49501548,112140.0,112130.0,0.39856439]
[1756949738583,0.49501548,112140.0,112130.0,0.2202]
[1756949738745,0.93650738,112140.0,112130.0,0.15152]
[1756949739153,0.1783803,112120.0,112110.0,0.06856]
[1756949739378,0.79980075,112120.0,112110.0,0.06856]
[1756949739580,0.49329729,112120.0,112110.0,0.22012]
[1756949739848,0.49329729,112120.0,112110.0,0.15156]
[1756949740027,0.17841213,112100.0,112090.0,0.24698764]
[1756949740229,0.49235559,112100.0,112090.0,0.22016]
[1756949740446,0.49012912,112100.0,112090.0,0.22016]
[1756949740649,0.49332912,112100.0,112090.0,0.22016]
[1756949741457,0.49332912,112100.0,112090.0,0.22030095]
[1756949741660,0.80292611,112100.0,112090.0,0.22030095]
[1756949742066,0.5023453,112100.0,112090.0,0.22030095]
[1756949742656,0.81194229,112100.0,112090.0,0.22030095]
[1756949742855,0.81194229,112100.0,112090.0,0.22230095]
[1756949743051,0.5023453,112100.0,112090.0,0.22230095]
[1756949743566,0.5023453,112100.0,112090.0,0.22130095]
[1756949743776,0.49332912,112100.0,112090.0,0.22130095]
[1756949743974,0.49332912,112100.0,112090.0,0.22230095]
[1756949746819,0.18373213,112100.0,112090.0,0.22230095]
[1756949747024,0.49332912,112100.0,112090.0,0.22230095]
[1756949747613,0.50242316,112100.0,112090.0,0.22230095]
[1756949751952,0.49332912,112100.0,112090.0,0.22230095]
[1756949752642,0.49012912,112100.0,112090.0,0.40572899]
[1756949753125,0.48800912,112100.0,112090.0,0.40572899]
[1756949754758,0.48800912,112100.0,112090.0,0.22730095]
[1756949756227,0.48800912,112100.0,112090.0,0.40572899]
[1756949756746,0.49012912,112100.0,112090.0,0.22730095]
[1756949757102,0.49012912,112100.0,112090.0,0.40572899]
[1756949757306,0.1872436,112110.0,112090.0,0.40572899]
[1756949757620,0.49023559,112100.0,112090.0,0.40572899]
[1756949757849,0.48800912,112100.0,112090.0,0.40572899]
[1756949758412,0.17841213,112100.0,112090.0,0.40472899]
[1756949758741,0.1806386,112100.0,112090.0,0.40372899]
[1756949758962,0.1806386,112100.0,112090.0,0.40068899]
[1756949758963,0.49235559,112100.0,112090.0,0.40068899]
[1756949759180,0.49235559,112100.0,112090.0,0.22226095]
[1756949759181,0.49012912,112100.0,112090.0,0.22226095]
[1756949760075,0.49012912,112100.0,112090.0,0.22326095]
[1756949760526,0.49012912,112100.0,112090.0,0.40168899]
[1756949760956,0.49012912,112100.0,112090.0,0.40472899]
[1756949761489,0.49012912,112100.0,112090.0,0.22326095]
[1756949761686,0.80292611,112100.0,112090.0,0.22130095]
[1756949761888,0.8948421,112100.0,112090.0,0.22130095]
[1756949762534,1.32675809,112100.0,112090.0,0.00114095]
[1756949762946,1.32675809,112100.0,112090.0,0.15274095]
[1756949763451,1.32355809,112100.0,112090.0,0.15470095]
[1756949763667,0.51841213,112100.0,112090.0,0.33516899]
[1756949763900,0.52366324,112110.0,112100.0,0.17841213]
[1756949763901,0.20521886,112110.0,112100.0,0.17841213]
[1756949764077,0.4968963,112120.0,112100.0,0.18037213]
[1756949764278,0.18062268,112110.0,112100.0,0.18341213]
[1756949764481,0.00222647,112110.0,112100.0,0.33509213]
[1756949765067,0.18062268,112110.0,112100.0,0.33509213]
[1756949765266,0.18062268,112110.0,112100.0,0.33209213]
[1756949766918,0.49021967,112110.0,112100.0,0.33209213]
[1756949767103,0.17839621,112110.0,112100.0,0.33209213]
[1756949767294,0.00422647,112110.0,112100.0,0.33209213]
[1756949767725,0.18262268,112110.0,112100.0,0.33209213]
[1756949768119,0.18039621,112110.0,112100.0,0.33209213]
[1756949769830,0.4899932,112110.0,112100.0,0.33209213]